lending/lending_fUSD_20251020
["ID","MTS","AMOUNT","RATE_DAILY","PERIOD"]
[391903643,1760970435541,250.0,0.00034335,30]
[391903644,1760970436305,250.0,0.00034335,30]
[391903645,1760970437491,250.0,0.00034335,30]
[391903646,1760970438243,250.0,0.00034335,30]
[391903647,1760970438882,250.0,0.00034335,30]
[391903648,1760970439725,250.0,0.00034335,30]
[391903650,1760970462906,-168.07754704,0.00014999,2]
[391903653,1760970464960,-166.66,0.00014999,2]
[391903663,1760970476079,-59.08397834,0.00014999,2]
[391903664,1760970476117,-500.0,0.00014999,2]
[391903665,1760970476149,-219.60122528,0.00014999,2]
[391903666,1760970476174,-176.83385129,0.00014999,2]
[391903667,1760970476199,-435.73489894,0.00014999,2]
[391903668,1760970476227,-500.0,0.00014999,2]
[391903669,1760970476256,-500.0,0.00014999,2]
[391903670,1760970476285,-160.83637123,0.00014999,2]
[391903671,1760970476313,-153.72085769,0.00014999,2]
[391903672,1760970476339,-775934.88078972,0.00015,2]
[391903685,1760970524164,10089.05057938,0.00034335,30]
[391903688,1760970542689,1747.7711526,0.00034335,120]
[391903693,1760970612159,157514.0,0.00034335,30]
[391903703,1760970632282,-600.0,0.000149,2]
[391903704,1760970632294,-2530.85825529,0.000149,2]
[391903705,1760970632311,-4684.41520694,0.000149,2]
[391903706,1760970632322,-1193.88154778,0.00015,2]
[391903707,1760970632339,-1365.50822621,0.00015,2]
[391903708,1760970632463,-146.42140878,0.00015,2]
[391903709,1760970632473,-1998.59118227,0.00015,2]
[391903710,1760970632484,-2385.6564233,0.00015,2]
[391903711,1760970632496,-832098.98841552,0.00015,2]
[391903712,1760970632508,-99054.24696903,0.00015,2]
[391903713,1760970632518,-2114.6090372,0.00015,2]
[391903714,1760970632527,-907.11487228,0.00016,2]
[391903715,1760970632537,-200.0,0.0001634,2]
[391903716,1760970632546,-334.73754704,0.000165,2]
[391903717,1760970632556,-355.78927491,0.000166,2]
[391903718,1760970632566,-1581.83194722,0.00017,2]
[391903719,1760970632576,-7815.27346217,0.00017045,2]
[391903720,1760970632585,-5604.95012019,0.000175,2]
[391903721,1760970632595,-395.39060073,0.00019,2]
[391903722,1760970632606,-7815.27346217,0.00019189,2]
[391903723,1760970632615,-500.0,0.00019973,2]
[391903724,1760970632625,-200.0,0.00019973,2]
[391903725,1760970632634,-500.0,0.00019973,2]
[391903726,1760970632644,-150.32,0.0001999,2]
[391903727,1760970632654,-158.22245015,0.0001999,2]
[391903728,1760970632664,-90741.41441675,0.0002,2]
[391903729,1760970632678,-258354.72596564,0.0002,2]
[391903730,1760970632690,-60078.17950728,0.0002,2]
[391903731,1760970632702,-250.0,0.0002,2]
[391903732,1760970632713,-4544.70443836,0.0002,2]
[391903734,1760970632724,-368.48262326,0.0002,2]
[391903736,1760970632737,-500.0,0.0002,2]
[391903737,1760970632751,-1435.76059208,0.0002,2]
[391903739,1760970632764,-834.46466102,0.0002,2]
[391903741,1760970632776,-1994.98025486,0.0002,2]
[391903742,1760970632789,-3444.2674592,0.0002,2]
[391903743,1760970638047,-1662.80305889,0.0002,2]
[391903744,1760970638207,-535.95469971,0.0002,2]
[391903745,1760970638299,-6489.71766827,0.0002,2]
[391903746,1760970638311,-4274.77292933,0.0002,2]
[391903747,1760970638323,-1217.4,0.0002,2]
[391903874,1760970640284,-405.0,0.0002,2]
[391903875,1760970640306,-585.83089932,0.0002,2]
[391903876,1760970640526,-3149.99983755,0.0002,2]
[391903877,1760970640538,-2775.00000104,0.0002,2]
[391903886,1760970643363,-8287.66060536,0.0002,2]
[391903887,1760970643383,-15201.54972935,0.0002,2]
[391903888,1760970643393,-17429.76055088,0.0002,5]
[391903889,1760970643404,-390.3849186,0.0002,5]
[391903890,1760970643416,-23322.93743533,0.0002,5]
[391903891,1760970643425,-497.69795725,0.0002,14]
[391903892,1760970643435,-310.78,0.00020187,2]
[391903893,1760970643444,-400.0,0.00020658,2]
[391903894,1760970643453,-20596.16852797,0.000207,2]
[391903895,1760970643463,-756.115,0.0002085,2]
[391903896,1760970643472,-7815.27346217,0.00021334,2]
[391903897,1760970643482,-600.0,0.00021342,2]
[391903898,1760970643491,-800.0,0.00022027,2]
[391903899,1760970643501,-802.89286599,0.00022712,2]
[391903900,1760970643513,-999.29,0.00023258,2]
[391903901,1760970643522,-4412.2,0.00023258,2]
[391903902,1760970643532,-7815.27346217,0.00023479,2]
[391903903,1760970643541,-999.29,0.0002413,2]
[391903904,1760970643551,-60635.00710853,0.000248,3]
[391903905,1760970643566,-1211.2,0.000248,3]
[391903907,1760970643585,-759.00016991,0.000248,3]
[391903923,1760970646216,-1041.49999996,0.000248,3]
[391903924,1760970646378,-1129.11616765,0.000248,3]
[391903925,1760970646391,-959.50635808,0.000248,3]
[391903926,1760970646465,-21772.891198,0.000248,3]
[391903934,1760970663738,1000.0,0.0002728,120]
[391903958,1760970803173,-500.0,0.00014999,2]
[391903959,1760970803196,-2500.0,0.00016499,2]
[391903960,1760970803217,-185.1074296,0.00020775,2]
[391903961,1760970803238,-157.06138511,0.000247,2]
[391903962,1760970803259,-500.0,0.00024799,2]
[391903963,1760970803279,-305.01442925,0.00024799,2]
[391903964,1760970803300,-275.67506777,0.00024799,2]
[391903965,1760970803322,-323.78369591,0.00024799,2]
[391903966,1760970803342,-185.0,0.00024799,2]
[391903967,1760970803370,-300.0,0.00024799,2]
[391903968,1760970803395,-361.808529,0.000248,7]
[391903969,1760970803418,-361.808529,0.000248,7]
[391903970,1760970803443,-361.808529,0.000248,7]
[391903971,1760970803463,-361.808529,0.000248,7]
[391903972,1760970803485,-55290.926993,0.0002489,3]
[391903973,1760970803505,-999.29,0.00025002,2]
[391903974,1760970803528,-6143.43633256,0.00025613,3]
[391903975,1760970803553,-7815.27346217,0.00025623,2]
[391903976,1760970803574,-3071.71816628,0.00025864,3]
[391903977,1760970803594,-999.29,0.00025874,2]
[391903978,1760970803616,-157.06138507,0.00026284,2]
[391903979,1760970803637,-310.78,0.00026676,2]
[391903980,1760970803658,-999.29,0.00026746,2]
[391903981,1760970803684,-18430.3089977,0.0002689,3]
[391903982,1760970803704,-24106.71817537,0.000269,2]
[391903983,1760970803727,-30717.1816628,0.0002699,3]
[391903984,1760970803746,-17018.90089434,0.00027,2]
[391903985,1760970803767,-21075.2757985,0.00027,2]
[391903986,1760970803789,-1018.02298578,0.00027,2]
[391903987,1760970803811,-4196.6086217,0.00027,2]
[391903988,1760970803833,-530.0,0.00027,2]
[391903989,1760970803853,-156.88,0.000274,2]
[391903990,1760970803880,-156.88,0.000274,2]
[391903991,1760970803902,-156.88,0.000274,2]
[391903992,1760970803923,-156.88,0.000274,2]
[391903993,1760970803945,-156.88,0.000274,2]
[391903994,1760970803968,-6143.43633256,0.00027758,3]
[391903995,1760970803991,-7815.27346217,0.00027768,2]
[391903996,1760970804013,-157.06138507,0.00027867,2]
[391903997,1760970804037,-185.1074296,0.00027955,2]
[391903998,1760970824207,500.0,0.00014999,2]
[391904000,1760970948166,250.0,0.00017,2]
[391904001,1760970961718,782.2548259,0.00025678,2]
[391904002,1760971000641,529.09,0.00014999,2]
[391904003,1760971000898,529.09,0.00014999,2]
[391904004,1760971001164,529.09,0.00014999,2]
[391904005,1760971001473,529.09,0.00019999,2]
[391904006,1760971001747,529.09,0.00019999,2]
[391904007,1760971002020,529.09,0.00019999,2]
[391904008,1760971002284,529.09,0.00024799,2]
[391904009,1760971002544,529.09,0.00024899,2]
[391904010,1760971028604,250.0,0.00034324,30]
[391904011,1760971029228,250.0,0.00034324,30]
[391904012,1760971029845,250.0,0.00034324,30]
[391904013,1760971029874,249.53705239,0.00027671,7]
[391904014,1760971030483,250.0,0.00034324,30]
[391904015,1760971031125,250.0,0.00034324,30]
[391904016,1760971031812,250.0,0.00034324,30]
[391904017,1760971032674,250.0,0.00034324,30]
[391904018,1760971033339,250.0,0.00034324,30]
[391904020,1760971167593,170.6,0.00024207,2]
[391904026,1760971309027,825.6330264,0.00025678,2]
[391904028,1760971340742,153.46,0.00015051,2]
[391904029,1760971340938,153.46,0.00015936,2]
[391904030,1760971341132,153.46,0.00016822,2]
[391904031,1760971341341,153.46,0.00017707,2]
[391904032,1760971341558,153.46,0.00018592,2]
[391904033,1760971341751,153.46,0.00019478,2]
[391904034,1760971341966,153.46,0.00020363,2]
[391904035,1760971342177,153.46,0.00021248,2]
[391904036,1760971342609,153.46,0.00022134,2]
[391904037,1760971342842,153.46,0.00023019,2]
[391904038,1760971343270,153.46,0.00023904,2]
[391904039,1760971343498,153.46,0.0002479,2]
[391904040,1760971343906,153.46,0.00025675,2]
[391904041,1760971344112,153.46,0.0002656,2]
[391904042,1760971344330,153.46,0.00027446,2]
[391904045,1760971450622,500.0,0.00014999,2]
[391904046,1760971450869,500.0,0.00014999,2]
[391904047,1760971451111,500.0,0.00014999,2]
[391904048,1760971451366,500.0,0.00019999,2]
[391904049,1760971451628,506.79812795,0.00019999,2]
[391904055,1760971561767,-13073.8698133,0.00025678,2]
[391904056,1760971568416,234.74213454,0.00027951,2]
[391904058,1760971572612,-186.1622,0.00028051,2]
[391904059,1760971572633,-153.46,0.00028331,2]
[391904060,1760971572652,-2653.55578561,0.00028757,3]
[391904061,1760971572675,-344.40916222,0.0002894,2]
[391904064,1760971598100,579.95906,0.000287,2]
[391904065,1760971598156,579.95906,0.0002873,2]
[391904066,1760971598197,579.95906,0.0002876,2]
[391904067,1760971598251,579.95906,0.0002874,2]
[391904068,1760971598329,579.95906,0.0002879,2]
[391904069,1760971598471,579.95906,0.0002882,2]
[391904070,1760971608217,2598.8517319,0.00025711,2]
[391904097,1760971696239,426.99259049,0.00014999,2]
[391904098,1760971750523,229.60610814,0.0002895,2]
[391904101,1760971775772,161.0,0.00029,30]
[391904102,1760971785087,161.0,0.00029,30]
[391904107,1760971832440,-335.26580545,0.00029041,2]
[391904108,1760971832451,-446.98902045,0.00029041,2]
[391904109,1760971832461,-329.16801766,0.00029044,2]
[391904110,1760971832482,-870.83198234,0.00029044,2]
[391904111,1760971832492,-300.0,0.00029044,2]
[391904112,1760971832501,-13073.8698133,0.00029045,2]
[391904113,1760971832511,-825.6330264,0.0002905,2]
[391904114,1760971832520,-2598.8517319,0.00029067,2]
[391904115,1760971832530,-153.46,0.00029216,2]
[391904116,1760971832539,-800.0,0.00029476,7]
[391904117,1760971832549,-800.0,0.00029542,7]
[391904118,1760971832560,-500.0,0.00029549,7]
[391904119,1760971832569,-2401.9,0.00029549,2]
[391904120,1760971832579,-1000.0,0.00029608,7]
[391904121,1760971832588,-166.66,0.00029623,30]
[391904122,1760971832598,-800.0,0.00029625,7]
[391904123,1760971832608,-500.0,0.0002967,7]
[391904124,1760971832618,-500.0,0.00029698,7]
[391904125,1760971832627,-1000.0,0.00029746,7]
[391904126,1760971832639,-500.0,0.00029748,7]
[391904127,1760971832648,-436.56230127,0.00029819,2]
[391904128,1760971832658,-500.0,0.00029869,7]
[391904129,1760971832668,-1000.0,0.00029876,7]
[391904130,1760971832678,-229.60610813,0.00029892,2]
[391904131,1760971832688,-1000.0,0.00029916,7]
[391904132,1760971832699,-500.0,0.00029944,7]
[391904133,1760971832709,-250.0,0.00029973,2]
[391904134,1760971832720,-500.0,0.00029986,7]
[391904135,1760971832730,-633.69,0.00029995,2]
[391904136,1760971832739,-200.0,0.0003,2]
[391904137,1760971832748,-600.0,0.00030036,7]
[391904138,1760971832758,-153.46,0.00030102,2]
[391904139,1760971832768,-151.0,0.00030137,30]
[391904140,1760971832777,-182.19,0.0003014,120]
[391904141,1760971832786,-1000.0,0.00030177,7]
[391904142,1760971832795,-166.66,0.00030246,30]
[391904143,1760971832805,-468.4,0.00030263,30]
[391904144,1760971832815,-376.214,0.00030334,25]
[391904145,1760971832824,-600.0,0.00030347,7]
[391904146,1760971832834,-500.0,0.00030399,7]
[391904147,1760971832844,-500.0,0.00030426,7]
[391904149,1760971832853,-500.0,0.00030429,7]
[391904152,1760971832866,-500.0,0.00030463,7]
[391904154,1760971832875,-1000.0,0.00030539,2]
[391904156,1760971832884,-500.0,0.0003056,7]
[391904158,1760971832894,-589.86,0.00030565,2]
[391904159,1760971832903,-1000.0,0.00030667,7]
[391904160,1760971832913,-500.0,0.00030704,7]
[391904162,1760971832922,-4102.59,0.00030711,2]
[391904163,1760971832931,-500.0,0.00030713,7]
[391904165,1760971832941,-1000.0,0.00030721,7]
[391904167,1760971832950,-722.62,0.0003075,37]
[391904169,1760971832959,-500.0,0.00030751,7]
[391904172,1760971832969,-800.0,0.00030757,7]
[391904175,1760971832978,-800.0,0.00030764,7]
[391904177,1760971832987,-600.0,0.00030816,7]
[391904179,1760971832996,-229.60610813,0.00030833,2]
[391904181,1760971833006,-1000.0,0.00030858,7]
[391904183,1760971833015,-500.0,0.00030866,7]
[391904185,1760971833025,-166.66,0.0003087,30]
[391904187,1760971833035,-231.29298876,0.00030871,7]
[391904189,1760971833044,-160.12198296,0.00030871,7]
[391904191,1760971833054,-162.14169228,0.00030871,7]
[391904192,1760971833064,-156.0890755,0.00030871,7]
[391904193,1760971833073,-154.47723844,0.00030871,7]
[391904194,1760971833083,-157.72394,0.00030871,7]
[391904195,1760971833092,-154.35941026,0.00030871,7]
[391904196,1760971833101,-156.6900257,0.00030871,7]
[391904197,1760971833110,-1000.0,0.00030911,7]
[391904198,1760971833124,-600.0,0.00030933,7]
[391904199,1760971833133,-915.37,0.00030946,2]
[391904200,1760971833142,-2751.0,0.00030954,120]
[391904201,1760971833152,-500.0,0.00030984,7]
[391904202,1760971833163,-156.0,0.00031,120]
[391904203,1760971833172,-500.0,0.00031043,7]
[391904204,1760971833181,-1500.0,0.00031057,120]
[391904205,1760971833190,-800.0,0.00031084,7]
[391904206,1760971833201,-500.0,0.00031163,7]
[391904207,1760971833211,-500.0,0.00031183,7]
[391904208,1760971833220,-1000.0,0.00031229,2]
[391904209,1760971833229,-600.0,0.00031243,7]
[391904210,1760971833239,-500.0,0.0003128,7]
[391904211,1760971833248,-500.0,0.00031294,7]
[391904212,1760971833257,-600.0,0.00031349,7]
[391904213,1760971833266,-500.0,0.00031425,7]
[391904214,1760971833276,-1680.0,0.00031469,3]
[391904215,1760971833285,-166.66,0.00031494,30]
[391904216,1760971833294,-500.0,0.00031505,7]
[391904217,1760971833304,-250.0,0.00031515,7]
[391904218,1760971833314,-166.39,0.0003186,2]
[391904219,1760971833323,-500.0,0.00032019,7]
[391904220,1760971833332,-500.0,0.00032038,7]
[391904221,1760971833341,-500.0,0.00032052,7]
[391904222,1760971833351,-1000.0,0.00032072,7]
[391904223,1760971833360,-1000.0,0.00032076,7]
[391904224,1760971833369,-166.66,0.00032117,30]
[391904225,1760971833379,-2000.0,0.0003214,2]
[391904226,1760971833388,-152.0,0.00032167,3]
[391904227,1760971833397,-600.0,0.0003217,7]
[391904228,1760971833406,-500.0,0.00032232,7]
[391904229,1760971833415,-500.0,0.00032236,7]
[391904230,1760971833425,-800.0,0.00032246,7]
[391904231,1760971833434,-171.0,0.00032256,2]
[391904232,1760971833444,-171.0,0.0003227,7]
[391904233,1760971833454,-174.0,0.00032285,2]
[391904234,1760971833464,-800.0,0.00032322,7]
[391904235,1760971833474,-157.35109713,0.00032349,2]
[391904236,1760971833484,-600.0,0.00032365,7]
[391904237,1760971833494,-500.0,0.00032367,7]
[391904238,1760971833503,-2344.58203866,0.0003237,2]
[391904239,1760971833514,-782.2548259,0.00032404,2]
[391904240,1760971833525,-500.0,0.00032406,7]
[391904241,1760971833535,-13073.8698133,0.00032412,2]
[391904242,1760971833544,-500.0,0.00032414,7]
[391904243,1760971833554,-825.6330264,0.00032421,2]
[391904244,1760971833564,-2598.8517319,0.00032423,2]
[391904245,1760971833573,-527.0,0.00032445,30]
[391904246,1760971833582,-527.0,0.00032445,30]
[391904247,1760971833591,-527.0,0.00032445,30]
[391904248,1760971833599,-527.0,0.00032445,30]
[391904249,1760971833608,-527.0,0.00032445,30]
[391904250,1760971833617,-527.0,0.00032445,30]
[391904251,1760971833626,-527.0,0.00032445,30]
[391904252,1760971833635,-527.0,0.00032445,30]
[391904253,1760971833644,-527.0,0.00032445,30]
[391904254,1760971833653,-527.0,0.00032445,30]
[391904255,1760971833662,-527.0,0.00032445,30]
[391904256,1760971833671,-527.0,0.00032445,30]
[391904257,1760971833680,-527.0,0.00032445,30]
[391904258,1760971833689,-527.0,0.00032445,30]
[391904259,1760971833699,-2462.12358067,0.00032445,2]
[391904260,1760971833712,-29094.56477016,0.00032445,2]
[391904261,1760971833733,-976.034,0.00032445,2]
[391904262,1760971833745,-5188.1237225,0.00032445,2]
[391904263,1760971833755,-370.0,0.00032445,2]
[391904264,1760971833766,-156452.05406004,0.00032445,2]
[391904265,1760971833776,-1096.0,0.00032449,30]
[391904266,1760971833785,-1096.0,0.00032449,30]
[391904267,1760971833798,-1096.0,0.00032449,30]
[391904268,1760971833820,-1096.0,0.00032449,30]
[391904269,1760971833842,-1096.0,0.00032449,30]
[391904270,1760971833865,-1096.0,0.00032449,30]
[391904271,1760971833886,-1096.0,0.00032449,30]
[391904272,1760971833910,-1096.0,0.00032449,30]
[391904273,1760971833932,-1096.0,0.00032449,30]
[391904274,1760971833954,-1096.0,0.00032449,30]
[391904275,1760971833975,-1096.0,0.00032449,30]
[391904276,1760971833997,-1096.0,0.00032449,30]
[391904277,1760971834022,-1096.0,0.00032449,30]
[391904278,1760971834046,-213.51010048,0.00032449,2]
[391904279,1760971834068,-192.97254744,0.00032449,2]
[391904280,1760971834089,-576.64858713,0.00032449,2]
[391904281,1760971834112,-715.0,0.00032457,30]
[391904282,1760971834125,-715.0,0.00032457,30]
[391904283,1760971834137,-715.0,0.00032457,30]
[391904284,1760971834146,-715.0,0.00032457,30]
[391904285,1760971834156,-715.0,0.00032457,30]
[391904286,1760971834166,-715.0,0.00032457,30]
[391904287,1760971834177,-715.0,0.00032457,30]
[391904288,1760971834186,-715.0,0.00032457,30]
[391904289,1760971834196,-715.0,0.00032457,30]
[391904290,1760971834206,-715.0,0.00032457,30]
[391904291,1760971834215,-715.0,0.00032457,30]
[391904292,1760971834224,-715.0,0.00032457,30]
[391904293,1760971834233,-715.0,0.00032457,30]
[391904294,1760971834243,-715.0,0.00032457,30]
[391904295,1760971834253,-928.0,0.00032462,30]
[391904296,1760971834263,-928.0,0.00032462,30]
[391904297,1760971834272,-928.0,0.00032462,30]
[391904298,1760971834281,-928.0,0.00032462,30]
[391904299,1760971834291,-928.0,0.00032462,30]
[391904300,1760971834301,-928.0,0.00032462,30]
[391904301,1760971834311,-928.0,0.00032462,30]
[391904302,1760971834323,-928.0,0.00032462,30]
[391904303,1760971834332,-928.0,0.00032462,30]
[391904304,1760971834342,-928.0,0.00032462,30]
[391904305,1760971834352,-928.0,0.00032462,30]
[391904306,1760971834361,-500.0,0.00032531,7]
[391904307,1760971834371,-600.0,0.00032572,7]
[391904308,1760971834381,-2344.58203865,0.00032574,2]
[391904309,1760971834391,-300.0,0.00032617,2]
[391904310,1760971834400,-500.0,0.00032658,7]
[391904311,1760971834409,-800.0,0.00032669,7]
[391904312,1760971834419,-500.0,0.0003269,7]
[391904313,1760971834428,-166.66,0.00032741,30]
[391904314,1760971834438,-500.0,0.00032748,7]
[391904315,1760971834447,-800.0,0.00032762,7]
[391904316,1760971834457,-2344.58203865,0.00032777,2]
[391904317,1760971834467,-157.35109709,0.00032812,2]
[391904318,1760971834476,-171.0,0.0003282,7]
[391904319,1760971834485,-151.0,0.00032877,30]
[391904320,1760971834495,-3406.0,0.00032903,2]
[391904321,1760971834505,-570.0,0.00032903,2]
[391904322,1760971834514,-786.0,0.00032903,2]
[391904323,1760971834524,-2051.0,0.00032903,2]
[391904324,1760971834533,-1309.0,0.00032903,2]
[391904325,1760971834542,-1590.0,0.00032903,2]
[391904326,1760971834552,-605.0,0.00032903,2]
[391904327,1760971834562,-166.39,0.00032911,2]
[391904328,1760971834574,-2344.58203865,0.00032981,2]
[391904329,1760971834584,-817.0,0.00033001,2]
[391904330,1760971834595,-1268.0,0.00033001,2]
[391904331,1760971834605,-6440.0,0.00033002,2]
[391904332,1760971834615,-2591.0,0.00033002,2]
[391904333,1760971834625,-2547.0,0.00033002,2]
[391904334,1760971834635,-500.0,0.00033004,7]
[391904335,1760971834645,-600.0,0.00033065,7]
[391904336,1760971834654,-1000.0,0.00033107,7]
[391904337,1760971834665,-600.0,0.00033123,7]
[391904338,1760971834676,-1000.0,0.00033124,7]
[391904339,1760971834688,-168.88,0.00033128,2]
[391904340,1760971834698,-500.0,0.00033142,7]
[391904341,1760971834846,-1000.0,0.00033157,7]
[391904342,1760971834856,-168.88,0.00033159,2]
[391904343,1760971834865,-310.78,0.00033165,2]
[391904344,1760971834875,-2344.58203865,0.00033184,2]
[391904345,1760971834885,-800.0,0.00033204,7]
[391904346,1760971834894,-200.0,0.00033206,2]
[391904347,1760971834904,-150.0,0.00033206,2]
[391904348,1760971834913,-150.0,0.00033206,2]
[391904349,1760971834922,-150.0,0.00033206,2]
[391904350,1760971834931,-150.0,0.00033206,2]
[391904351,1760971834941,-150.0,0.00033206,2]
[391904352,1760971834950,-150.0,0.00033206,2]
[391904353,1760971834959,-200.0,0.00033261,2]
[391904354,1760971834968,-150.0,0.00033261,2]
[391904355,1760971834978,-206.65702817,0.00033261,2]
[391904356,1760971834987,-500.0,0.00033261,7]
[391904357,1760971834997,-879.94144586,0.00033271,2]
[391904358,1760971835006,-157.35109709,0.00033276,2]
[391904359,1760971835016,-600.0,0.00033287,7]
[391904360,1760971835026,-150.0,0.00033316,2]
[391904361,1760971835039,-150.0,0.0003337,2]
[391904362,1760971835060,-2344.58203865,0.00033388,2]
[391904363,1760971835082,-250.0,0.00033425,2]
[391904364,1760971835104,-500.0,0.00033445,7]
[391904365,1760971835125,-228.0,0.00033454,7]
[391904366,1760971835147,-500.0,0.0003346,7]
[391904367,1760971835170,-169.27616447,0.00033476,7]
[391904368,1760971835191,-1000.0,0.00033548,7]
[391904369,1760971835213,-22883.3176,0.00033553,2]
[391904370,1760971835235,-500.0,0.00033574,7]
[391904371,1760971835258,-2344.58203865,0.00033591,2]
[391904372,1760971835279,-171.0,0.00033601,2]
[391904373,1760971835300,-171.0,0.00033662,2]
[391904374,1760971835320,-1000.0,0.00033666,2]
[391904375,1760971835341,-800.0,0.00033681,7]
[391904376,1760971835364,-171.14830439,0.000337,120]
[391904377,1760971835387,-162.67203958,0.000337,120]
[391904378,1760971835401,-198.00753175,0.000337,120]
[391904379,1760971835411,-1078.06374374,0.000337,120]
[391904380,1760971835421,-9157.45465854,0.000337,120]
[391904381,1760971835431,-157.35109709,0.00033739,2]
[391904382,1760971835440,-1000.0,0.00033778,7]
[391904383,1760971835450,-2344.58203865,0.00033795,2]
[391904384,1760971835459,-500.0,0.00033796,7]
[391904385,1760971835468,-182.19,0.00033908,120]
[391904386,1760971835478,-800.0,0.00033916,7]
[391904387,1760971835488,-500.0,0.00033917,7]
[391904388,1760971835499,-228.0,0.00033926,2]
[391904389,1760971835508,-600.0,0.00033957,7]
[391904390,1760971835518,-166.39,0.00033963,2]
[391904391,1760971835527,-300.0,0.00033987,2]
[391904392,1760971835537,-2344.58203865,0.00033998,2]
[391904393,1760971835546,-938.1743,0.00034,2]
[391904394,1760971835555,-187.12962143,0.00034,2]
[391904395,1760971835564,-208.36285139,0.00034019,2]
[391904396,1760971835574,-200.0,0.00034027,10]
[391904397,1760971835583,-800.0,0.00034065,7]
[391904398,1760971835592,-171.0,0.00034075,2]
[391904399,1760971835602,-1000.0,0.00034093,2]
[391904400,1760971835612,-11031.191,0.00034093,2]
[391904401,1760971835621,-2351.0,0.00034096,3]
[391904402,1760971835630,-600.0,0.00034134,7]
[391904403,1760971835639,-500.0,0.00034138,7]
[391904404,1760971835649,-1000.0,0.00034168,2]
[391904405,1760971835659,-754.75512616,0.00034174,6]
[391904406,1760971835668,-187.49493416,0.00034174,15]
[391904407,1760971835678,-529.09,0.00034177,8]
[391904408,1760971835687,-5000.0,0.00034192,2]
[391904409,1760971835696,-500.60594313,0.00034196,2]
[391904410,1760971835707,-179.34077465,0.00034202,2]
[391904411,1760971835716,-157.35109709,0.00034202,2]
[391904412,1760971835726,-2344.58203865,0.00034202,2]
[391904413,1760971835735,-428.19879521,0.00034202,2]
[391904414,1760971838266,-3040.5,0.00031403,2]
[391904415,1760971838277,-1184.0,0.00033002,2]
[391904416,1760971838286,-433.18315563,0.00034202,2]
[391904417,1760971838296,-793.0798944,0.00034202,2]
[391904418,1760971838305,-179.64740362,0.00034202,2]
[391904419,1760971838315,-171.0,0.0003421,7]
[391904420,1760971838326,-187.49493415,0.0003421,15]
[391904421,1760971838335,-600.0,0.00034213,7]
[391904422,1760971838345,-2000.0,0.00034222,3]
[391904423,1760971838355,-1000.0,0.00034231,7]
[391904424,1760971838364,-171.0,0.00034236,2]
[391904425,1760971838374,-500.0,0.00034246,30]
[391904426,1760971838384,-400.0,0.0003427,2]
[391904427,1760971838394,-700.0,0.0003427,2]
[391904428,1760971838405,-1139.59297555,0.00034271,3]
[391904429,1760971838416,-2970.00001,0.00034271,3]
[391904430,1760971838426,-13062.04887415,0.00034271,3]
[391904431,1760971838436,-1225.0,0.00034274,2]
[391904432,1760971838446,-17171.6418597,0.00034282,3]
[391904433,1760971838456,-2500.0,0.00034291,7]
[391904434,1760971838466,-17171.6418597,0.00034291,3]
[391904435,1760971838476,-158.22245016,0.00034291,2]
[391904436,1760971838485,-150.31,0.00034291,2]
[391904437,1760971838495,-171629.29306346,0.00034292,3]